bitfinex/quotes_ETHUSD_20251028
["timestamp","ask_amount","ask_price","bid_price","bid_amount"]
[1761691415313,0.001,3998.4,3998.3,4.74706295]
[1761691415519,0.001,3998.4,3998.3,9.02986295]
[1761691416021,0.001,3998.4,3998.3,5.18986295]
[1761691416227,0.001,3998.4,3998.3,6.36434764]
[1761691417892,0.001,3998.4,3998.3,3.42048469]
[1761691418093,0.001,3998.4,3998.3,4.74706295]
[1761691418329,0.001,3998.4,3998.3,5.18986295]
[1761691418625,0.001,3998.4,3997.9,2.245]
[1761691418807,0.001,3998.4,3998.0,2.50123628]
[1761691419008,0.001,3998.4,3998.2,2.50109203]
[1761691419215,0.001,3998.4,3998.1,0.6566]
[1761691419404,0.001,3998.4,3998.1,0.2138]
[1761691419733,0.001,3998.4,3998.0,2.50124655]
[1761691420506,0.001,3998.4,3998.0,0.4308]
[1761691420710,0.001,3998.4,3998.1,0.2276]
[1761691420906,0.1258,3998.4,3998.2,2.246]
[1761691421124,0.1258,3998.4,3998.3,3.84]
[1761691421832,0.1258,3998.4,3998.2,6.086]
[1761691422198,0.001,3998.4,3998.3,3.84]
[1761691423524,0.001,3998.4,3998.3,6.34106295]
[1761691424039,0.001,3998.4,3998.3,3.84]
[1761691424208,0.001,3998.4,3998.3,6.77186295]
[1761691424402,0.001,3998.4,3998.3,6.34106295]
[1761691426348,0.001,3999.2,3999.1,2.50056262]
[1761691426558,0.20772854,4000.3,3999.1,2.5974]
[1761691426710,0.20772854,4000.3,3999.6,2.50024496]
[1761691426910,0.20772854,4000.3,3999.7,2.3768]
[1761691427260,0.20772854,4000.3,4000.2,2.727475]
[1761691427412,0.20772854,4000.3,4000.2,5.410275]
[1761691427613,0.20772854,4000.3,4000.2,0.79102662]
[1761691427815,0.20772854,4000.3,3998.8,0.89393091]
[1761691427816,4.70804588,4000.3,3998.5,0.89393091]
[1761691428011,4.70804588,4000.3,3998.1,0.2276]
[1761691428012,1.5552,3999.6,3998.6,2.254]
[1761691428254,0.0498,3999.6,3998.7,2.50079082]
[1761691428555,2.50031826,3999.5,3998.8,0.47547908]
[1761691428853,2.50037665,3999.4,3998.8,0.47547908]
[1761691429424,0.20772854,4000.3,3999.3,4.72791734]
[1761691429644,2.70754342,4000.3,3999.4,2.253]
[1761691429846,0.20772854,4000.3,3999.4,2.253]
[1761691430220,2.49988203,4000.2,3999.4,2.253]
[1761691430523,2.54969123,4000.2,3999.2,4.75548173]
[1761691430727,2.49994201,4000.1,3999.3,2.50041492]
[1761691430936,2.50004638,4000.0,3999.2,3.04644968]
[1761691431136,2.50004638,4000.0,3999.2,5.54694108]
[1761691431727,2.50004638,4000.0,3999.2,3.04644968]
[1761691431956,2.50004638,4000.0,3998.9,0.2276]
[1761691432258,2.50017036,3999.8,3999.1,2.255]
[1761691432627,2.50014122,3999.8,3999.1,2.255]
[1761691432957,0.0498,3999.8,3998.8,0.47547908]
[1761691433163,2.50039481,3999.4,3998.7,2.254]
[1761691433668,2.50033166,3999.5,3998.7,4.75479194]
[1761691433840,4.50031734,3999.3,3998.2,2.5011255]
[1761691434039,4.50031734,3999.3,3998.4,2.50094642]
[1761691434040,2.5005001,3999.2,3998.4,2.50094642]
[1761691434245,6.75431734,3999.3,3998.3,0.31595255]
[1761691434565,9.30457475,3999.3,3998.6,2.50087236]
[1761691435241,6.80411734,3999.3,3998.6,2.50087236]
[1761691435441,3.859,3999.3,3998.6,2.50087236]
[1761691435859,4.75443893,3999.3,3998.6,2.50087236]
[1761691436267,4.75443893,3999.3,3998.5,2.50091672]
[1761691436666,2.50052635,3999.2,3998.3,3.24780692]
[1761691436855,4.75445149,3999.3,3998.4,0.57294069]
[1761691437054,4.75445149,3999.3,3998.6,2.5008581]
[1761691437377,0.1248,3999.1,3998.5,2.50092315]
[1761691438139,0.1248,3999.1,3998.6,2.50087433]
[1761691438958,0.1248,3999.1,3998.5,2.50091742]
[1761691440175,0.1248,3999.1,3998.4,3.19873087]
[1761691440373,2.50063974,3999.0,3998.4,0.1248]
[1761691440755,2.50070214,3998.9,3998.2,2.50111613]
[1761691440962,0.1248,3998.7,3998.2,2.50111613]
[1761691441384,0.1248,3998.7,3998.1,2.85352952]
[1761691441585,0.1248,3998.7,3998.1,0.1248]
[1761691441758,0.1248,3998.4,3998.2,3.84]
[1761691442090,0.1248,3998.4,3998.3,3.84]
[1761691442091,2.5010004,3998.4,3998.3,3.84]
[1761691442271,4.8018004,3998.4,3998.3,3.84]
[1761691445067,2.50120745,3998.1,3997.7,3.84]
[1761691445268,4.75126927,3998.0,3997.7,3.84]
[1761691445561,2.50137575,3997.8,3997.7,3.84]
[1761691445883,0.1248,3997.7,3997.4,3.84]
[1761691446083,2.249,3997.6,3997.5,3.84]
[1761691446855,0.1248,3997.5,3997.4,3.84]
[1761691447056,4.7505009,3997.6,3997.4,3.84]
[1761691447259,0.1248,3997.4,3997.3,0.002]
[1761691447452,4.18162605,3997.4,3997.3,0.002]
[1761691447687,4.23142605,3997.4,3997.3,0.002]
[1761691449497,4.18162605,3997.4,3997.3,0.002]
[1761691450898,1.68,3997.4,3997.3,0.002]
[1761691451099,3.93,3997.4,3997.3,0.002]
[1761691452406,0.1248,3997.4,3997.3,0.002]
[1761691452701,0.1248,3997.4,3997.3,2.99130551]
[1761691452899,2.50106406,3998.3,3997.5,2.50155092]
[1761691453100,0.1248,3997.8,3997.5,2.50155092]
[1761691453265,0.1248,3997.8,3997.4,2.96421475]
[1761691453471,0.1248,3997.8,3997.4,0.4626]
[1761691453672,0.1248,3997.8,3997.5,0.4626]
[1761691454804,0.1248,3997.8,3997.3,0.002]
[1761691454974,0.1248,3997.5,3997.3,0.002]
[1761691456019,0.1248,3997.5,3997.3,0.4646]
[1761691456910,0.1248,3997.5,3997.3,0.002]
[1761691457085,2.62637126,3997.5,3997.3,0.002]
[1761691457276,2.50162605,3997.4,3997.3,0.002]
[1761691458078,2.62638152,3997.5,3997.3,0.002]
[1761691458419,2.62637763,3997.5,3997.3,0.002]
[1761691460590,0.1248,3997.5,3997.3,0.002]
[1761691463209,0.1248,3997.5,3997.4,3.84]
[1761691463877,2.246,3997.5,3997.4,6.80422605]
[1761691464084,2.246,3997.5,3997.4,7.75893361]
[1761691465211,2.246,3997.5,3997.4,3.91893361]
[1761691466082,0.1248,3997.4,3997.3,0.002]
[1761691470296,0.1248,3997.4,3997.3,3.842]
[1761691477244,2.3678,3997.4,3997.3,3.842]
[1761691479900,4.86942605,3997.4,3997.3,3.842]
[1761691480903,11.8847329,3997.4,3997.3,3.842]
[1761691481100,11.8847329,3997.4,3997.3,0.002]
[1761691482496,4.18162605,3997.4,3997.3,0.002]
[1761691482699,6.47142605,3997.4,3997.3,0.002]
[1761691484307,6.42162605,3997.4,3997.3,0.002]
[1761691488371,6.47142605,3997.4,3997.3,0.002]
[1761691488579,9.49019305,3997.4,3997.3,0.002]
[1761691489168,6.87693005,3997.4,3997.3,0.002]
[1761691489680,9.81103105,3997.4,3997.3,0.002]
[1761691490476,9.16583305,3997.4,3997.3,0.002]
[1761691493845,9.11603305,3997.4,3997.3,0.002]
[1761691494049,9.16583305,3997.4,3997.3,0.002]
[1761691494485,6.87693005,3997.4,3997.3,0.002]
[1761691494667,12.44222205,3997.4,3997.3,0.002]
[1761691495008,9.03079805,3997.4,3997.3,0.002]
[1761691495706,9.01568805,3997.4,3997.3,0.002]
[1761691496010,4.05682605,3997.4,3997.3,0.002]
[1761691496144,3.8924132,3997.4,3997.3,0.4704]
[1761691496345,3.7922,3997.4,3997.3,0.4704]
[1761691496574,6.29382605,3997.4,3997.3,0.4704]
[1761691498367,6.29382605,3997.4,3997.3,4.3104]
[1761691500046,6.29382605,3997.4,3997.3,3.842]
[1761691500442,9.21862405,3997.4,3997.3,3.842]
[1761691500748,6.34362605,3997.4,3997.3,3.842]
[1761691500966,6.29382605,3997.4,3997.3,3.842]
[1761691503703,20.56553905,3997.4,3997.3,3.842]
[1761691504312,20.56553905,3997.4,3997.3,0.002]
[1761691504601,2.50130514,3998.0,3997.3,0.4704]
[1761691504893,2.239,3997.9,3997.3,0.4704]
[1761691505095,2.239,3997.8,3997.3,0.4704]
[1761691505291,2.24,3997.7,3997.3,0.4704]
[1761691505492,3.00364063,4001.7,3998.5,0.23]
[1761691505493,5.41030685,3999.0,3998.5,0.23]
[1761691505668,2.50101589,3998.4,3997.3,0.4704]
[1761691505874,2.50113187,3998.2,3997.4,0.4684]
[1761691506068,2.246,3998.1,3997.4,0.4684]
[1761691506391,2.50131318,3997.9,3997.4,0.4684]
[1761691506594,2.5013823,3997.8,3997.4,0.4684]
[1761691506888,2.50151872,3997.6,3997.4,0.4684]
[1761691507596,2.247,3997.7,3997.3,0.002]
[1761691507757,2.50162605,3997.4,3997.3,0.002]
[1761691507962,4.74747705,3997.4,3997.3,0.002]
[1761691508691,2.247,3997.4,3997.3,0.4704]
[1761691509077,4.74862605,3997.4,3997.3,0.4704]
[1761691509280,4.74862605,3997.4,3997.3,0.002]
[1761691510566,6.30382605,3997.4,3997.3,0.002]
[1761691511003,3.8012,3997.4,3997.3,0.4581]
[1761691512202,6.30282605,3997.4,3997.3,0.4581]
[1761691512381,6.30282605,3997.4,3997.3,0.002]
[1761691513573,3.8012,3997.4,3997.3,0.002]
[1761691513767,3.8012,3997.4,3997.3,0.4581]
[1761691514313,6.30282605,3997.4,3997.3,0.4581]
[1761691514817,3.8012,3997.4,3997.3,0.4581]
[1761691515019,6.30282605,3997.4,3997.3,0.4581]
[1761691516430,6.30082605,3997.4,3997.3,0.4581]
[1761691518652,6.30082605,3997.4,3997.3,0.002]
[1761691518940,6.70633005,3997.4,3997.3,0.002]
[1761691522145,18.76114305,3997.4,3997.3,0.002]
[1761691522639,17.56169605,3997.4,3997.3,0.002]
[1761691524145,16.71253305,3997.4,3997.3,0.002]
[1761691524555,16.17110005,3997.4,3997.3,0.002]
[1761691526435,15.88410005,3997.4,3997.3,0.002]
[1761691527474,8.56529231,3997.4,3997.3,0.002]
[1761691527657,10.80629231,3997.4,3997.3,0.002]
[1761691527970,10.80629231,3997.4,3997.3,0.4581]
[1761691529064,10.80629231,3997.4,3997.3,0.002]
[1761691529269,10.80629231,3997.4,3997.3,0.4581]
[1761691531669,6.29782605,3997.4,3997.3,0.4581]
[1761691532066,4.74262605,3997.4,3997.3,0.4581]
[1761691532577,0.1248,3997.4,3997.3,4.2981]
[1761691532777,0.1248,3997.6,3997.3,4.75360175]
[1761691532948,0.1248,3997.6,3997.4,2.98273012]
[1761691533146,0.1248,3997.6,3997.3,4.29750175]
[1761691533147,0.1248,3997.6,3997.5,0.4561]
[1761691533384,0.1248,3997.6,3997.5,1.18162701]
[1761691533757,0.1248,3997.6,3997.5,0.4561]
[1761691534400,2.6263009,3997.6,3997.5,0.4561]
[1761691534751,2.50162605,3997.4,3997.3,3.842]
[1761691534952,8.56529231,3997.4,3997.3,3.842]
[1761691537608,8.56529231,3997.4,3997.3,4.2981]
[1761691539290,1.5552,3997.4,3997.3,4.2981]
[1761691539724,3.7932,3997.4,3997.3,4.2981]
[1761691540615,6.29482605,3997.4,3997.3,4.2981]
[1761691540926,6.29482605,3997.4,3997.3,3.842]
[1761691541618,6.29382605,3997.4,3997.3,3.842]
[1761691543084,4.05682605,3997.4,3997.3,3.842]
[1761691543287,6.29382605,3997.4,3997.3,3.842]
[1761691548629,6.29382605,3997.4,3997.3,4.3005]
[1761691550901,6.29382605,3997.4,3997.3,3.842]
[1761691551335,6.29382605,3997.4,3997.3,4.3005]
[1761691552699,6.29482605,3997.4,3997.3,4.3005]
[1761691553627,6.29482605,3997.4,3997.3,3.842]
[1761691555043,6.29482605,3997.4,3997.3,4.3005]
[1761691555735,6.29482605,3997.4,3997.3,3.842]
[1761691556114,6.29482605,3997.4,3997.3,4.3005]
[1761691557122,6.29482605,3997.4,3997.3,3.842]
[1761691562669,6.29482605,3997.4,3997.3,0.002]
[1761691562670,19.34351531,3997.4,3997.3,0.002]
[1761691562865,19.39331531,3997.4,3997.3,0.002]
[1761691563527,18.368849,3997.0,3996.9,1e-08]
[1761691563729,38.74897026,3997.0,3996.9,1e-08]
[1761691564046,40.85029266,3997.0,3996.9,1e-08]
[1761691564368,40.21231766,3997.0,3996.9,1e-08]
[1761691564727,11.25084666,3997.0,3996.9,1e-08]
[1761691564986,41.25084666,3997.0,3996.9,1e-08]
[1761691565531,2.5025025,3996.0,3994.9,0.002]
[1761691565774,13.72905176,3996.0,3995.1,0.2264]
[1761691565925,14.73625876,3996.0,3995.1,0.2264]
[1761691566126,9.0297005,3996.0,3995.1,0.6849]
[1761691566346,9.0297005,3996.0,3995.3,0.4585]
[1761691566347,6.6942065,3996.0,3995.3,0.4585]
[1761691566550,12.5593835,3996.0,3995.3,0.4585]
[1761691566956,17.55210676,3996.0,3995.1,0.2264]
[1761691567966,25.76039376,3996.0,3995.1,0.2264]
[1761691568159,24.81414676,3996.0,3995.1,0.2264]
[1761691568792,2.50312891,3995.0,3994.9,0.002]
[1761691568992,6.5396418,3995.0,3994.9,0.002]
[1761691569463,10.8681458,3995.0,3994.9,0.002]
[1761691569779,20.5524428,3995.0,3994.9,0.002]
[1761691569992,12.3916768,3995.0,3994.9,0.002]
[1761691570509,10.6456838,3995.0,3994.9,0.002]
[1761691570658,4.05832891,3995.0,3994.9,0.002]
[1761691570862,1.5552,3995.0,3994.9,0.433]
[1761691571066,3.7852,3995.0,3994.9,0.433]
[1761691571446,6.28832891,3995.0,3994.9,0.433]
[1761691571665,3.7852,3995.0,3994.9,0.433]
[1761691572901,2.23,3995.0,3994.9,0.433]
[1761691574690,4.73312891,3995.0,3994.9,4.273]
[1761691574856,2.23,3995.0,3994.9,4.273]
[1761691576050,4.73312891,3995.0,3994.9,3.842]
[1761691576574,4.73312891,3995.0,3994.9,4.273]
[1761691577986,4.73312891,3995.0,3994.9,3.842]
[1761691578190,6.28832891,3995.0,3994.9,3.842]
[1761691584391,4.05832891,3995.0,3994.9,4.273]
[1761691584892,6.28932891,3995.0,3994.9,4.273]
[1761691585993,4.05832891,3995.0,3994.9,4.273]
[1761691586172,6.28932891,3995.0,3994.9,4.273]
[1761691586691,4.05832891,3995.0,3994.9,4.273]
[1761691586863,3.7862,3995.0,3994.9,4.273]
[1761691588599,0.001,3995.9,3994.9,4.273]
[1761691588763,0.001,3995.9,3995.0,4.271]
[1761691588764,0.1248,3995.2,3995.0,4.271]
[1761691588969,2.231,3995.1,3995.0,4.271]
[1761691589211,2.231,3995.1,3995.0,3.84]
[1761691589800,2.231,3995.1,3995.0,4.271]
[1761691590599,2.231,3995.1,3995.0,3.84]
[1761691590983,2.231,3995.1,3995.0,4.271]
[1761691591315,2.3558,3995.2,3995.0,5.59362645]
[1761691591497,2.3558,3995.2,3995.1,0.6543]
[1761691595076,2.3558,3995.2,3995.1,4.4943]
[1761691596523,2.3558,3995.2,3995.1,4.0633]
[1761691597526,2.3558,3995.2,3995.1,4.4943]
[1761691600422,2.3558,3995.2,3995.1,4.0633]
[1761691600628,2.3558,3995.2,3995.1,4.5273]
[1761691604833,2.3558,3995.2,3995.1,4.5293]
[1761691606330,4.8588036,3995.2,3995.1,4.5293]
[1761691608604,2.3558,3995.2,3995.1,4.5293]
[1761691609048,4.8588036,3995.2,3995.1,4.5293]
[1761691609443,2.3558,3995.2,3995.1,4.5293]
[1761691612342,4.8588036,3995.2,3995.1,4.5293]
[1761691612843,2.3558,3995.2,3995.1,4.5293]
[1761691613854,0.001,3995.9,3995.5,3.7152]
[1761691614042,2.23,3995.8,3995.6,3.7152]
[1761691614545,2.23,3995.8,3995.7,2.96669039]
[1761691614722,2.23,3995.8,3995.7,1.382474]
[1761691614921,2.23,3995.8,3995.7,5.097674]
[1761691615117,2.23,3995.8,3995.7,4.633674]
[1761691615323,2.23,3995.8,3995.7,3.7152]
[1761691616044,6.28782775,3995.8,3995.7,3.7152]
[1761691620576,6.23782775,3995.8,3995.7,3.7152]
[1761691627400,4.05782775,3995.8,3995.7,3.7152]
[1761691627569,1.5552,3995.8,3995.7,4.1792]
[1761691627766,3.7852,3995.8,3995.7,4.1792]
[1761691628799,0.001,3995.9,3995.7,11.04712]
[1761691628970,0.001,3996.3,3995.9,3.7142]
[1761691628971,0.1248,3996.0,3995.9,3.7142]
[1761691629399,0.1248,3996.0,3995.9,4.1434]
[1761691630568,2.229,3996.1,3995.9,6.64596512]
[1761691630895,0.1258,3996.3,3996.0,5.53298851]
[1761691631098,0.1258,3996.3,3996.2,0.2262]
[1761691631303,2.3548,3996.3,3996.2,0.2262]
[1761691631527,2.3548,3996.3,3996.2,6.91017725]
[1761691631867,2.3548,3996.3,3996.2,4.4078]
[1761691632070,2.3548,3996.3,3996.2,5.48421673]
[1761691633920,0.001,3996.3,3996.2,8.11139398]
[1761691634318,0.001,3996.3,3996.2,14.56139398]
[1761691637497,0.001,3997.0,3996.9,2.501939]
[1761691637692,0.001,3997.0,3996.9,10.41575452]
[1761691639538,0.001,3997.0,3996.9,14.92246379]
[1761691642515,0.001,3997.9,3997.3,2.50168863]
[1761691642726,0.001,3997.9,3997.3,5.08068863]
[1761691642924,0.001,3997.9,3997.3,5.54808863]
[1761691643134,0.001,3997.9,3997.3,4.4960941]
[1761691643314,0.001,3997.9,3997.3,1.99440547]
[1761691643518,0.1258,3997.9,3997.3,5.54808863]
[1761691643962,0.1258,3997.9,3997.3,3.32008863]
[1761691644851,2.62713917,3997.9,3997.3,0.8184]
[1761691645055,2.62713917,3997.9,3997.3,0.6936]
[1761691645210,2.62712184,3997.9,3997.3,0.6936]
[1761691646720,2.62712184,3997.9,3997.3,3.19528863]
[1761691646953,2.62711503,3997.9,3997.3,3.19528863]
[1761691647788,0.1258,3997.9,3997.3,3.19528863]
[1761691647962,0.1258,3997.9,3997.7,3.7092]
[1761691648362,0.1258,3997.9,3997.7,4.1766]
[1761691649757,0.1258,3997.9,3997.7,3.7092]
[1761691650290,2.6271513,3997.9,3997.7,3.7092]
[1761691651251,0.1258,3997.9,3997.7,3.7092]
[1761691651649,2.3538,3997.9,3997.7,3.7092]
[1761691651863,4.9048138,3997.9,3997.7,3.7092]
[1761691653298,2.50237575,3997.8,3997.7,3.7092]
[1761691654485,0.001,3997.8,3997.7,3.7092]
[1761691655092,0.001,3997.8,3997.7,4.90325803]
[1761691655309,0.001,3997.8,3997.7,7.40469635]
[1761691655517,0.001,3999.6,3998.3,3.7052]
[1761691655814,2.50039065,3999.4,3998.5,2.50091764]
[1761691655988,2.228,3999.0,3998.6,2.99328405]
[1761691656388,2.228,3999.0,3998.6,0.49240875]
[1761691658119,4.50670927,3998.9,3998.4,3.7052]
[1761691658285,2.50093785,3998.5,3998.4,3.7052]
[1761691658486,2.50089736,3998.6,3998.4,3.7052]
[1761691658788,2.227,3998.5,3998.4,3.7052]
[1761691658987,2.227,3998.5,3998.4,4.1726]
[1761691659384,0.001,3998.6,3998.4,3.7052]
[1761691659585,0.001,3998.6,3998.5,3.7052]
[1761691661084,1.5562,3998.6,3998.5,3.7052]
[1761691661536,0.001,3998.6,3998.5,3.7052]
[1761691662396,2.228,3998.6,3998.5,3.7052]
[1761691662625,2.228,3998.6,3998.5,4.16730937]
[1761691662838,0.001,3998.6,3998.5,4.16730937]
[1761691663033,0.001,3998.6,3998.5,6.23114722]
[1761691663236,0.001,3998.6,3998.5,4.1423]
[1761691663536,0.001,3998.6,3998.5,6.64323785]
[1761691664543,0.001,3998.6,3998.5,4.1423]
[1761691666505,0.001,3998.6,3998.5,3.7052]
[1761691667004,4.50770927,3998.6,3998.5,3.7052]
[1761691667203,9.18841058,3998.6,3998.5,3.7052]
[1761691667437,8.66278457,3998.6,3998.5,3.7052]
[1761691668207,14.52373157,3998.6,3998.5,3.7052]
[1761691668407,10.0170223,3998.6,3998.5,3.7052]
[1761691668708,13.21361657,3998.6,3998.5,3.7052]
[1761691669748,12.86547857,3998.6,3998.5,3.7052]
[1761691670724,8.66278457,3998.6,3998.5,3.7052]
[1761691673944,8.56378457,3998.6,3998.5,3.7052]
[1761691674249,22.47781957,3998.6,3998.5,3.7052]
[1761691674652,15.82381357,3998.6,3998.5,3.7052]
[1761691674854,14.71910357,3998.6,3998.5,3.7052]
[1761691675049,14.71910357,3998.6,3997.5,3.7052]
[1761691675050,2.50141442,3997.8,3997.5,3.7052]
[1761691675266,2.227,3997.7,3997.6,3.7052]
[1761691676835,2.50136639,3997.9,3997.6,4.1423]
[1761691677136,2.227,3997.7,3997.6,4.1423]
[1761691677447,1.5552,3998.3,3997.7,0.4371]
[1761691677633,0.1248,3998.0,3997.7,0.4371]
[1761691677839,1.5562,3998.6,3998.0,3.5804]
[1761691677840,1.5552,3998.3,3998.0,3.5804]
[1761691678020,1.5552,3998.3,3998.0,4.0175]
[1761691678422,2.227,3998.2,3998.1,0.4371]
[1761691678650,3.7822,3998.2,3998.1,0.4371]
[1761691678855,0.1248,3998.1,3998.0,4.0175]
[1761691679226,2.3518,3998.1,3998.0,4.0175]
[1761691679746,0.1248,3998.1,3998.0,4.0175]
[1761691679942,2.3518,3998.1,3998.0,4.0175]
[1761691680554,2.3518,3998.1,3998.0,3.5804]
[1761691680555,6.40818806,3998.1,3998.0,3.5804]
[1761691681263,10.91489733,3998.1,3998.0,3.5804]
[1761691684066,6.40818806,3998.1,3998.0,3.5804]
[1761691684974,6.50718806,3998.1,3998.0,3.5804]
[1761691685587,6.40818806,3998.1,3998.0,3.5804]
[1761691686262,10.91489733,3998.1,3998.0,3.5804]
[1761691686482,3.7822,3998.1,3998.0,4.0175]
[1761691687759,3.7822,3998.1,3998.0,3.5804]
[1761691689188,6.28338806,3998.1,3998.0,3.5804]
[1761691689354,12.19508906,3998.1,3998.0,3.5804]
[1761691689552,11.07530806,3998.1,3998.0,3.5804]
[1761691689751,9.02185206,3998.1,3998.0,3.5804]
[1761691690761,4.05638806,3998.1,3998.0,3.5804]
[1761691690958,6.28338806,3998.1,3998.0,3.5804]
[1761691693066,4.05638806,3998.1,3998.0,3.5824]
[1761691693280,6.28438806,3998.1,3998.0,3.5824]
[1761691694998,6.28338806,3998.1,3998.0,3.5824]
[1761691695882,6.38238806,3998.1,3998.0,3.5824]
[1761691697561,2.5015009,3997.6,3997.5,0.002]
[1761691697766,11.18776026,3997.6,3997.5,3.842]
[1761691698525,11.03956026,3997.6,3997.5,3.842]
[1761691701395,6.53285099,3997.6,3997.5,4.3153]
[1761691701710,3.7812,3997.6,3997.5,4.3153]
[1761691702087,6.2827009,3997.6,3997.5,3.842]
[1761691703722,0.001,3998.1,3997.5,4.3153]
[1761691704026,2.5013804,3997.8,3997.6,0.4733]
[1761691704190,4.72743832,3997.7,3997.6,0.4733]
[1761691704387,2.6263009,3997.6,3997.5,3.842]
[1761691704616,4.0567009,3997.6,3997.5,3.842]
[1761691706623,4.0567009,3997.6,3997.5,4.3153]
[1761691706932,3.7812,3997.6,3997.5,4.3153]
[1761691707111,3.7812,3997.6,3997.5,4.74683]
[1761691707626,2.226,3997.7,3997.6,3.84]
[1761691707945,2.226,3997.8,3997.6,4.3133]
[1761691708098,2.226,3997.8,3997.7,0.4733]
[1761691710197,0.001,3998.1,3997.7,0.947983]
[1761691710441,2.226,3998.0,3997.7,0.947983]
[1761691710647,4.72730568,3998.0,3997.8,0.4733]
[1761691710800,2.226,3998.0,3997.8,0.4733]
[1761691711001,2.50131318,3997.9,3997.8,0.4733]
[1761691711202,2.50131318,3997.9,3997.6,3.84]
[1761691711404,2.50131318,3997.9,3997.7,0.4733]
[1761691711802,4.72727242,3998.0,3997.7,0.4733]
[1761691712419,4.72727242,3998.0,3997.8,3.84]
[1761691712619,4.72827242,3998.0,3997.8,3.84]
[1761691712942,4.72826401,3998.0,3997.8,3.84]
[1761691713153,2.227,3998.0,3997.8,3.84]
[1761691713330,2.227,3998.0,3997.9,0.4733]
[1761691713703,0.001,3998.0,3997.9,0.4733]
[1761691713919,2.227,3998.0,3997.9,0.4733]
[1761691714551,2.3518,3998.0,3997.9,0.4733]
[1761691715023,2.3518,3998.0,3997.9,3.90622906]
[1761691715350,0.001,3998.4,3998.1,3.7132]
[1761691715351,0.1248,3998.3,3998.1,3.7132]
[1761691715732,0.1248,3998.3,3998.2,0.4733]
[1761691718081,0.1248,3998.3,3998.2,6.6876255]
[1761691718264,2.227,3998.4,3998.2,4.1865]
[1761691718459,2.227,3998.4,3998.3,0.4733]
[1761691718837,2.227,3998.4,3998.3,2.97436295]
[1761691719576,2.227,3998.4,3998.3,0.4733]
[1761691720778,0.1258,3998.6,3998.3,0.4733]
[1761691720779,0.001,3998.6,3998.5,2.50093785]
[1761691721078,0.001,3998.6,3998.5,7.87933853]
[1761691721241,0.001,3999.2,3998.6,2.5008753]
[1761691721448,0.001,3999.2,3998.9,2.50068768]
[1761691721869,0.001,3999.2,3998.9,2.93928768]
[1761691723266,0.001,3999.2,3998.9,6.82060268]
[1761691723466,0.001,3999.2,3998.9,8.29380545]
[1761691725680,0.001,3999.2,3998.9,8.29280545]
[1761691725886,0.001,3999.2,3998.9,8.19269045]
[1761691726906,0.001,3999.2,3998.9,6.63749045]
[1761691728199,0.001,3999.2,3998.9,10.34969045]
[1761691730714,0.001,3999.2,3998.9,10.47449045]
[1761691730932,0.001,3999.2,3998.9,4.53729045]
[1761691731240,0.001,3999.2,3998.9,5.28908768]
[1761691732443,0.001,3999.2,3998.8,2.225]
[1761691732744,0.1248,3999.1,3998.4,0.1248]
[1761691732921,2.5016466,3999.0,3998.4,0.1248]
[1761691733440,0.001,3999.0,3998.4,0.1248]
[1761691733644,0.001,3999.0,3998.4,2.62579071]
[1761691734345,0.001,3999.0,3998.5,2.50093785]
[1761691734537,0.001,3999.0,3998.5,3.42458817]
[1761691734740,0.001,3999.0,3998.8,2.50074529]
[1761691735031,0.001,3999.0,3998.9,0.4386]
[1761691735207,0.001,3999.0,3998.8,2.50074529]
[1761691735408,0.001,3999.0,3998.9,0.4386]
[1761691736545,0.001,3999.0,3998.6,0.4386]
[1761691737043,0.001,3999.0,3998.7,2.50076485]
[1761691737448,0.001,3999.0,3998.7,2.93936485]
[1761691738260,0.001,3999.0,3998.8,2.50074764]
[1761691738946,0.001,3999.0,3998.7,0.4386]
[1761691739126,0.001,3999.0,3998.6,2.50084181]
[1761691739314,0.001,3999.0,3998.9,2.50068768]
[1761691740024,0.001,3999.0,3998.7,2.50079478]
[1761691740228,0.0498,3998.9,3998.6,2.50085088]
[1761691740757,0.001,3999.0,3998.8,2.50075022]
[1761691740917,0.001,3999.0,3998.9,2.50068768]
[1761691741111,0.001,3999.0,3998.9,2.93928768]
[1761691741317,0.001,3999.0,3998.9,2.96429455]
[1761691741558,0.001,3999.0,3998.9,3.51079903]
[1761691741787,0.1248,3999.1,3999.0,6.21182515]
[1761691742254,0.1248,3999.1,3999.0,6.65042515]
[1761691742765,0.001,3999.2,3999.1,2.50056262]
[1761691742929,0.001,3999.2,3999.1,3.18606824]
[1761691743117,0.001,3999.2,3999.1,4.99335758]
[1761691743313,0.001,3999.2,3999.1,4.96835196]
[1761691745622,0.001,3999.2,3999.1,13.64335196]
[1761691746348,0.16072854,4000.3,3999.8,2.50012037]
[1761691746549,0.16072854,4000.3,4000.1,2.49989815]
[1761691747273,0.16072854,4000.3,3999.9,3.7112]
[1761691747419,0.16072854,4000.3,4000.0,2.49998926]
[1761691747927,0.16072854,4000.3,3999.9,3.7112]
[1761691748128,0.16072854,4000.3,4000.1,2.49988047]
[1761691748338,0.16072854,4000.3,4000.0,0.025]
[1761691748639,0.16072854,4000.3,3999.9,3.7112]
[1761691748848,0.16072854,4000.3,4000.1,2.4998923]
[1761691749156,0.16072854,4000.3,4000.2,2.717675]
[1761691749393,0.16072854,4000.3,4000.2,4.08499241]
[1761691749555,2.49906293,4001.5,4000.7,2.49951877]
[1761691749741,2.225,4001.5,4000.8,3.55047146]
[1761691749942,2.225,4001.5,4000.9,2.49943762]
[1761691750295,3.7802,4001.5,4000.9,2.49943762]
[1761691750769,3.7802,4001.5,4000.8,6.04995057]